fUST/lending_fUST_20240215
["ID","MTS","AMOUNT","RATE_DAILY","PERIOD"]
[314097167,1707975038602,-540.407823,0.00035346,2]
[314097168,1707975038611,-294.837525,0.00035346,2]
[314097169,1707975038620,-308.052807,0.00035378,2]
[314097170,1707975038630,-14571.35950289,0.00035614,31]
[314097171,1707975038639,-242.14726824,0.00035616,14]
[314097172,1707975038648,-500.0,0.00035616,14]
[314097173,1707975038658,-500.0,0.00035616,14]
[314097174,1707975038667,-15094.88,0.00035616,14]
[314097175,1707975038677,-762.48,0.00035616,14]
[314097176,1707975038686,-500.0,0.00035616,14]
[314097177,1707975038695,-500.0,0.00035616,14]
[314097178,1707975038704,-500.0,0.00035616,14]
[314097179,1707975038714,-14936.71,0.00035616,14]
[314097180,1707975038723,-24618.95,0.00035616,14]
[314097181,1707975038733,-584.17,0.00035616,14]
[314097182,1707975038742,-500.0,0.00035616,14]
[314097183,1707975038751,-500.0,0.00035616,14]
[314097184,1707975038760,-502.42635629,0.00035616,14]
[314097185,1707975038770,-500.0,0.00035616,14]
[314097186,1707975038779,-500.0,0.00035616,14]
[314097187,1707975038790,-500.0,0.00035616,14]
[314097188,1707975038801,-500.0,0.00035616,14]
[314097189,1707975038811,-500.0,0.00035616,14]
[314097190,1707975038820,-649.77,0.00035616,14]
[314097191,1707975038830,-1146.64469971,0.00035653,2]
[314097192,1707975038839,-2179.4,0.00035664,14]
[314097193,1707975038849,-500.0,0.00035664,14]
[314097194,1707975038858,-500.0,0.00035664,14]
[314097195,1707975038869,-1250.52,0.00035664,14]
[314097196,1707975038879,-1121.29,0.00035664,14]
[314097197,1707975038889,-500.0,0.00035664,14]
[314097198,1707975038898,-534.30204635,0.00035664,14]
[314097199,1707975038907,-778.28,0.00035664,14]
[314097200,1707975038917,-509.89484034,0.00035664,14]
[314097201,1707975038926,-1506.38,0.00035664,14]
[314097202,1707975038935,-1877.02,0.00035664,14]
[314097203,1707975038945,-500.0,0.00035664,14]
[314097204,1707975038954,-500.0,0.00035664,14]
[314097205,1707975038963,-500.0,0.00035664,14]
[314097206,1707975038972,-2540.61,0.00035664,14]
[314097207,1707975038982,-1260.54,0.00035664,14]
[314097208,1707975038991,-7796.16,0.00035664,14]
[314097209,1707975039001,-7329.69,0.00035664,14]
[314097210,1707975039010,-3137.03,0.00035664,14]
[314097211,1707975039019,-500.0,0.00035664,14]
[314097212,1707975039029,-500.0,0.00035664,14]
[314097213,1707975039038,-946.12,0.00035664,14]
[314097214,1707975039047,-500.0,0.00035666,14]
[314097215,1707975039057,-500.0,0.00035666,14]
[314097216,1707975039066,-269.56839625,0.00035682,2]
[314097217,1707975039075,-15094.88,0.00035753,14]
[314097218,1707975039085,-762.48,0.00035753,14]
[314097219,1707975039094,-500.0,0.00035753,14]
[314097220,1707975039103,-14936.71,0.00035753,14]
[314097221,1707975039112,-24618.95,0.00035753,14]
[314097222,1707975039121,-584.17,0.00035753,14]
[314097223,1707975039131,-500.0,0.00035753,14]
[314097224,1707975039141,-500.0,0.00035753,14]
[314097225,1707975039151,-500.0,0.00035753,14]
[314097226,1707975039160,-500.0,0.00035753,14]
[314097227,1707975039169,-500.0,0.00035753,14]
[314097228,1707975039179,-649.77,0.00035753,14]
[314097229,1707975039188,-518.791509,0.00035782,2]
[314097230,1707975039197,-283.044023,0.00035782,2]
[314097231,1707975039207,-540.407823,0.00035782,2]
[314097232,1707975039216,-294.837525,0.00035782,2]
[314097233,1707975039226,-1000.0,0.000358,2]
[314097234,1707975039235,-2179.4,0.00035801,14]
[314097235,1707975039244,-576.70942644,0.00035801,14]
[314097236,1707975039253,-1250.52,0.00035801,14]
[314097237,1707975039262,-1121.29,0.00035801,14]
[314097238,1707975039271,-500.0,0.00035801,14]
[314097239,1707975039280,-778.28,0.00035801,14]
[314097240,1707975039289,-1506.38,0.00035801,14]
[314097241,1707975039299,-1877.02,0.00035801,14]
[314097242,1707975039308,-500.0,0.00035801,14]
[314097243,1707975039318,-500.0,0.00035801,14]
[314097244,1707975039327,-2540.61,0.00035801,14]
[314097245,1707975039336,-1260.54,0.00035801,14]
[314097246,1707975039346,-7796.16,0.00035801,14]
[314097247,1707975039355,-7329.69,0.00035801,14]
[314097248,1707975039364,-3137.03,0.00035801,14]
[314097249,1707975039373,-500.0,0.00035801,14]
[314097250,1707975039383,-500.0,0.00035801,14]
[314097251,1707975039393,-946.12,0.00035801,14]
[314097252,1707975039403,-15094.88,0.0003589,14]
[314097253,1707975039414,-762.48,0.0003589,14]
[314097254,1707975039423,-578.79304877,0.0003589,14]
[314097255,1707975039432,-14936.71,0.0003589,14]
[314097256,1707975039441,-24618.95,0.0003589,14]
[314097257,1707975039450,-584.17,0.0003589,14]
[314097258,1707975039460,-500.0,0.0003589,14]
[314097259,1707975039469,-500.0,0.0003589,14]
[314097260,1707975039479,-500.0,0.0003589,14]
[314097261,1707975039488,-649.77,0.0003589,14]
[314097262,1707975039497,-1254.15,0.00035891,2]
[314097263,1707975039507,-1254.15,0.00035891,2]
[314097264,1707975039516,-1254.15,0.00035891,2]
[314097265,1707975039525,-1254.15,0.00035891,2]
[314097266,1707975039535,-1254.15,0.00035891,2]
[314097267,1707975039545,-1254.15,0.00035891,2]
[314097268,1707975039554,-1254.15,0.00035891,2]
[314097269,1707975039564,-1254.15,0.00035891,2]
[314097270,1707975039573,-1254.15,0.00035891,2]
[314097271,1707975039583,-1254.15,0.00035891,2]
[314097272,1707975039592,-500.0,0.00035891,15]
[314097273,1707975039602,-500.0,0.00035891,15]
[314097274,1707975039611,-500.0,0.00035891,15]
[314097275,1707975039620,-500.0,0.00035891,15]
[314097276,1707975039629,-197.33585836,0.00035891,15]
[314097277,1707975039638,-596.70127433,0.00035891,15]
[314097278,1707975039648,-500.0,0.00035891,15]
[314097279,1707975039657,-500.0,0.00035891,15]
[314097280,1707975039738,-409.87247855,0.00035891,15]
[314097281,1707975039748,-276.07965877,0.00035891,15]
[314097282,1707975039757,-500.0,0.00035891,15]
[314097283,1707975039766,-500.0,0.00035891,15]
[314097284,1707975039775,-539.02217487,0.00035891,15]
[314097285,1707975039785,-500.0,0.00035891,15]
[314097286,1707975039798,-500.0,0.00035891,15]
[314097287,1707975039807,-500.0,0.00035891,15]
[314097288,1707975039816,-500.0,0.00035891,15]
[314097289,1707975039826,-500.0,0.00035891,15]
[314097290,1707975039837,-500.0,0.00035891,15]
[314097291,1707975039846,-500.0,0.00035891,15]
[314097292,1707975039856,-500.0,0.00035891,15]
[314097293,1707975039866,-500.0,0.00035891,15]
[314097294,1707975039876,-500.0,0.00035891,15]
[314097297,1707975039887,-500.0,0.00035891,15]
[314097299,1707975039897,-500.0,0.00035891,15]
[314097300,1707975039907,-500.0,0.00035891,15]
[314097301,1707975039917,-500.0,0.00035891,15]
[314097302,1707975039927,-500.0,0.00035891,15]
[314097303,1707975039937,-215633.97694543,0.00035892,2]
[314097304,1707975039946,-2179.4,0.00035938,14]
[314097305,1707975039956,-1250.52,0.00035938,14]
[314097306,1707975039965,-1121.29,0.00035938,14]
[314097307,1707975039974,-500.0,0.00035938,14]
[314097309,1707975039984,-778.28,0.00035938,14]
[314097311,1707975039993,-1506.38,0.00035938,14]
[314097313,1707975040002,-1877.02,0.00035938,14]
[314097316,1707975040011,-500.0,0.00035938,14]
[314097318,1707975040021,-2540.61,0.00035938,14]
[314097320,1707975040030,-1260.54,0.00035938,14]
[314097322,1707975040039,-7796.16,0.00035938,14]
[314097324,1707975040048,-7329.69,0.00035938,14]
[314097326,1707975040057,-3137.03,0.00035938,14]
[314097328,1707975040067,-500.0,0.00035938,14]
[314097330,1707975040077,-946.12,0.00035938,14]
[314097332,1707975040086,-500.0,0.00035996,14]
[314097334,1707975040095,-500.0,0.00035996,14]
[314097335,1707975040104,-2133.03,0.00035996,7]
[314097337,1707975040114,-500.0,0.00035996,14]
[314097340,1707975040123,-517.39206153,0.00035996,14]
[314097342,1707975040133,-500.0,0.00035996,14]
[314097344,1707975040142,-195.99445327,0.00035996,14]
[314097346,1707975040152,-500.0,0.00035996,14]
[314097348,1707975040161,-500.0,0.00035996,14]
[314097350,1707975040170,-184.23353177,0.00035996,14]
[314097352,1707975040180,-514.93351127,0.00035996,14]
[314097354,1707975040189,-500.0,0.00035996,14]
[314097356,1707975040198,-516.94149683,0.00035996,14]
[314097358,1707975040208,-585.79,0.00035996,14]
[314097360,1707975040217,-500.0,0.00035996,14]
[314097362,1707975040226,-878.18,0.00035996,14]
[314097364,1707975040235,-568.99,0.00035996,14]
[314097366,1707975040244,-501.74485484,0.00035996,14]
[314097368,1707975040253,-500.0,0.00035996,14]
[314097370,1707975040262,-500.0,0.00035996,14]
[314097372,1707975040271,-517.63,0.00035996,14]
[314097374,1707975040280,-506.57653874,0.00035996,14]
[314097376,1707975040290,-557.04962915,0.00035996,14]
[314097378,1707975040299,-500.0,0.00035996,14]
[314097380,1707975040307,-669.2,0.00035996,14]
[314097382,1707975040317,-401.84311323,0.00035996,14]
[314097384,1707975040327,-500.0,0.00035996,14]
[314097386,1707975040336,-266.15669203,0.00035996,14]
[314097388,1707975040346,-500.0,0.00035996,14]
[314097390,1707975040355,-500.0,0.00035996,14]
[314097392,1707975040365,-500.0,0.00035996,14]
[314097394,1707975040374,-500.0,0.00035996,14]
[314097396,1707975040384,-500.0,0.00035996,14]
[314097398,1707975040392,-489.82980321,0.00035996,14]
[314097400,1707975040402,-212.18676146,0.00035996,14]
[314097402,1707975040411,-500.0,0.00035996,14]
[314097404,1707975040420,-504.18399464,0.00035996,14]
[314097406,1707975040429,-583.6952767,0.00035996,14]
[314097408,1707975040439,-2025.38,0.00035996,14]
[314097410,1707975040448,-500.0,0.00035996,14]
[314097412,1707975040457,-500.0,0.00035996,14]
[314097414,1707975040466,-500.0,0.00035996,14]
[314097416,1707975040476,-500.0,0.00035996,14]
[314097418,1707975040485,-500.0,0.00035996,14]
[314097420,1707975040494,-503.03626653,0.00035996,14]
[314097422,1707975040503,-1968.68,0.00035996,14]
[314097424,1707975040512,-862.45,0.00035996,14]
[314097426,1707975040521,-1772.65,0.00035996,14]
[314097428,1707975040531,-500.0,0.00035996,14]
[314097430,1707975040540,-500.0,0.00035997,14]
[314097432,1707975040548,-500.0,0.00035997,14]
[314097434,1707975040557,-500.0,0.00035997,2]
[314097436,1707975040567,-346.27020784,0.00035997,14]
[314097437,1707975040576,-500.0,0.00035998,14]
[314097438,1707975040585,-500.0,0.00035999,14]
[314097439,1707975040595,-500.0,0.00035999,7]
[314097440,1707975040605,-500.0,0.00035999,14]
[314097441,1707975040616,-500.0,0.00035999,7]
[314097442,1707975040625,-500.0,0.00035999,14]
[314097443,1707975040635,-501.66356561,0.00035999,14]
[314097444,1707975040644,-500.0,0.00035999,14]
[314097445,1707975040653,-339.79293651,0.00035999,14]
[314097446,1707975040661,-500.0,0.00035999,14]
[314097447,1707975040671,-505.6144463,0.00035999,14]
[314097448,1707975040680,-500.0,0.00035999,14]
[314097449,1707975040689,-514.834404,0.00035999,14]
[314097450,1707975040698,-500.0,0.00035999,14]
[314097451,1707975040707,-500.0,0.00035999,14]
[314097452,1707975040716,-11961.38661853,0.00036,3]
[314097453,1707975040727,-400.0,0.00036,4]
[314097454,1707975040737,-400.0,0.00036,4]
[314097455,1707975040747,-496.0,0.00036,4]
[314097456,1707975040757,-166.0,0.00036,2]
[314097457,1707975040767,-186.0,0.00036,2]
[314097458,1707975040777,-15094.88,0.00036027,14]
[314097459,1707975040787,-762.48,0.00036027,14]
[314097460,1707975040798,-14936.71,0.00036027,14]
[314097461,1707975040808,-24618.95,0.00036027,14]
[314097462,1707975040818,-584.17,0.00036027,14]
[314097463,1707975040828,-500.0,0.00036027,14]
[314097464,1707975040839,-500.0,0.00036027,14]
[314097465,1707975040849,-500.0,0.00036027,14]
[314097466,1707975040857,-649.77,0.00036027,14]
[314097467,1707975040866,-155.0,0.00036036,2]
[314097468,1707975040876,-2179.4,0.00036075,14]
[314097469,1707975040885,-1250.52,0.00036075,14]
[314097470,1707975040895,-1121.29,0.00036075,14]
[314097471,1707975040904,-500.0,0.00036075,14]
[314097472,1707975040913,-778.28,0.00036075,14]
[314097473,1707975040923,-1506.38,0.00036075,14]
[314097474,1707975040932,-1877.02,0.00036075,14]
[314097475,1707975040941,-544.32704576,0.00036075,14]
[314097476,1707975040950,-2540.61,0.00036075,14]
[314097477,1707975040960,-1260.54,0.00036075,14]
[314097478,1707975040970,-7796.16,0.00036075,14]
[314097479,1707975040979,-7329.69,0.00036075,14]
[314097480,1707975040989,-3137.03,0.00036075,14]
[314097481,1707975040998,-500.0,0.00036075,14]
[314097482,1707975041007,-946.12,0.00036075,14]
[314097483,1707975041016,-500.0,0.00036131,14]
[314097484,1707975041025,-500.0,0.00036131,14]
[314097485,1707975041035,-500.0,0.00036132,14]
[314097486,1707975041044,-1569.69,0.00036132,14]
[314097487,1707975041055,-500.0,0.00036132,14]
[314097488,1707975041066,-16978.1,0.00036132,14]
[314097489,1707975041077,-709.93,0.00036132,14]
[314097490,1707975041088,-15877.72,0.00036132,14]
[314097491,1707975041098,-4942.66,0.00036132,14]
[314097492,1707975041109,-1337.76,0.00036132,14]
[314097493,1707975041119,-500.0,0.00036132,14]
[314097494,1707975041130,-500.0,0.00036132,14]
[314097495,1707975041140,-500.0,0.00036132,14]
[314097496,1707975041151,-500.0,0.00036132,14]
[314097497,1707975041161,-500.0,0.00036132,14]
[314097498,1707975041171,-500.0,0.00036133,14]
[314097499,1707975041181,-500.0,0.00036133,14]
[314097500,1707975041190,-2133.03,0.00036133,7]
[314097501,1707975041201,-500.0,0.00036133,14]
[314097502,1707975041211,-569.62856393,0.00036133,14]
[314097503,1707975041222,-505.07339131,0.00036133,14]
[314097504,1707975041232,-500.0,0.00036133,14]
[314097505,1707975041244,-547.99777768,0.00036133,14]
[314097506,1707975041254,-585.79,0.00036133,14]
[314097507,1707975041264,-500.0,0.00036133,14]
[314097508,1707975041275,-878.18,0.00036133,14]
[314097509,1707975041285,-568.99,0.00036133,14]
[314097510,1707975041294,-500.0,0.00036133,14]
[314097511,1707975041304,-393.15183719,0.00036133,14]
[314097512,1707975041314,-517.63,0.00036133,14]
[314097513,1707975041323,-500.0,0.00036133,14]
[314097514,1707975041332,-669.2,0.00036133,14]
[314097515,1707975041343,-500.0,0.00036133,14]
[314097516,1707975041353,-500.0,0.00036133,14]
[314097517,1707975041362,-510.66884095,0.00036133,14]
[314097518,1707975041372,-529.90121524,0.00036133,14]
[314097519,1707975041381,-507.61309093,0.00036133,14]
[314097520,1707975041391,-500.0,0.00036133,14]
[314097521,1707975041400,-2025.38,0.00036133,14]
[314097522,1707975041410,-500.0,0.00036133,14]
[314097523,1707975041419,-500.0,0.00036133,14]
[314097524,1707975041431,-500.0,0.00036133,14]
[314097525,1707975041440,-442.04517344,0.00036133,14]
[314097526,1707975041449,-1968.68,0.00036133,14]
[314097527,1707975041459,-862.45,0.00036133,14]
[314097528,1707975041469,-1772.65,0.00036133,14]
[314097529,1707975041479,-498.94893045,0.00036134,14]
[314097530,1707975041490,-500.0,0.00036134,14]
[314097531,1707975041499,-663.18,0.00036134,14]
[314097532,1707975041509,-507.8299765,0.00036134,14]
[314097533,1707975041518,-243.24558305,0.00036134,14]
[314097534,1707975041527,-503.32932476,0.00036134,14]
[314097535,1707975041536,-503.4326383,0.00036134,14]
[314097536,1707975041546,-439.02807789,0.00036134,14]
[314097537,1707975041556,-508.6563458,0.00036134,14]
[314097538,1707975041632,-500.0,0.00036134,14]
[314097539,1707975041641,-500.0,0.00036134,14]
[314097540,1707975041650,-500.0,0.00036134,14]
[314097541,1707975041660,-500.0,0.00036134,14]
[314097542,1707975041669,-500.0,0.00036134,14]
[314097543,1707975041678,-511.00343445,0.00036134,14]
[314097544,1707975041688,-500.0,0.00036134,14]
[314097545,1707975041696,-500.0,0.00036134,14]
[314097546,1707975041705,-500.0,0.00036134,14]
[314097547,1707975041715,-504.24519245,0.00036134,14]
[314097548,1707975041724,-503.4400308,0.00036134,14]
[314097549,1707975041734,-500.0,0.00036134,14]
[314097550,1707975041743,-544.11636985,0.00036134,14]
[314097551,1707975041752,-500.0,0.00036134,14]
[314097552,1707975041761,-315.01598404,0.00036134,14]
[314097553,1707975041771,-564.36544628,0.00036134,14]
[314097554,1707975041780,-500.0,0.00036134,14]
[314097555,1707975041791,-528.03076737,0.00036134,14]
[314097556,1707975041801,-574.18027158,0.00036134,14]
[314097557,1707975041810,-500.0,0.00036134,14]
[314097558,1707975041819,-506.21858276,0.00036134,14]
[314097559,1707975041828,-503.20204968,0.00036134,14]
[314097560,1707975041838,-500.0,0.00036134,14]
[314097561,1707975041847,-510.79586648,0.00036134,14]
[314097562,1707975041856,-500.0,0.00036134,14]
[314097563,1707975041865,-500.0,0.00036134,14]
[314097564,1707975041875,-500.0,0.00036134,14]
[314097565,1707975041884,-500.0,0.00036134,14]
[314097566,1707975041893,-500.0,0.00036134,7]
[314097567,1707975041902,-500.0,0.00036134,7]
[314097568,1707975041911,-178.61972058,0.00036134,14]
[314097569,1707975041919,-500.0,0.00036134,14]
[314097570,1707975041928,-345.27422997,0.00036134,14]
[314097571,1707975041938,-500.0,0.00036134,14]
[314097572,1707975041948,-431.41224199,0.00036134,14]
[314097573,1707975041957,-500.0,0.00036134,14]
[314097574,1707975041966,-500.0,0.00036134,14]
[314097575,1707975041975,-502.96749761,0.00036134,14]
[314097576,1707975041984,-500.0,0.00036134,14]
[314097577,1707975041993,-551.44609297,0.00036134,14]
[314097578,1707975042002,-503.68135752,0.00036134,14]
[314097579,1707975042012,-500.0,0.00036134,14]
[314097580,1707975042021,-504.68343651,0.00036134,14]
[314097581,1707975042029,-500.0,0.00036134,14]
[314097582,1707975042038,-503.59517549,0.00036134,14]
[314097583,1707975042047,-450.74553218,0.00036134,14]
[314097584,1707975042056,-542.99508916,0.00036134,14]
[314097585,1707975042065,-568.45781319,0.00036134,14]
[314097586,1707975042074,-502.27692986,0.00036134,14]
[314097587,1707975042083,-500.0,0.00036134,14]
[314097588,1707975042093,-555.85105106,0.00036134,14]
[314097589,1707975042102,-171.89335008,0.00036134,14]
[314097590,1707975042111,-641.09533347,0.00036134,14]
[314097591,1707975042120,-500.0,0.00036134,14]
[314097592,1707975042129,-500.0,0.00036134,14]
[314097593,1707975042138,-502.47326589,0.00036134,14]
[314097594,1707975042147,-506.64620486,0.00036134,14]
[314097595,1707975042156,-500.0,0.00036134,14]
[314097596,1707975042165,-502.74075274,0.00036134,14]
[314097597,1707975042174,-505.56615774,0.00036134,14]
[314097598,1707975042184,-500.0,0.00036134,14]
[314097599,1707975042193,-500.0,0.00036134,14]
[314097600,1707975042202,-500.0,0.00036134,14]
[314097601,1707975042211,-332.80978677,0.00036134,14]
[314097602,1707975042220,-500.0,0.00036134,14]
[314097603,1707975042230,-501.30006247,0.00036134,14]
[314097604,1707975042239,-505.28274655,0.00036134,14]
[314097605,1707975042248,-500.0,0.00036134,14]
[314097606,1707975042257,-500.0,0.00036134,14]
[314097607,1707975042266,-508.16048991,0.00036134,14]
[314097608,1707975042276,-504.77975332,0.00036134,14]
[314097609,1707975042285,-500.0,0.00036134,14]
[314097610,1707975042295,-502.4620901,0.00036134,14]
[314097611,1707975042304,-506.56484932,0.00036134,14]
[314097612,1707975042313,-500.0,0.00036134,14]
[314097613,1707975042323,-500.0,0.00036136,7]
[314097614,1707975042332,-500.0,0.00036136,14]
[314097615,1707975042341,-500.0,0.00036136,7]
[314097616,1707975042350,-500.0,0.00036136,14]
[314097618,1707975042359,-500.0,0.00036136,14]
[314097619,1707975042368,-7441.99817277,0.00036164,14]
[314097648,1707975042809,-1146.6446997,0.00036,2]
[314097649,1707975042818,-3519.03406739,0.00036164,14]
[314097650,1707975042831,-3426.35550327,0.00036164,14]
[314097653,1707975417759,10000.0,0.00021,2]
[314097654,1707975425587,10000.0,0.00021,2]
[314097655,1707975433172,10000.0,0.00021,10]
[314097656,1707975440187,10000.0,0.00021,10]
[314097657,1707975448378,10000.0,0.00021,10]
[314097658,1707975454864,10000.0,0.00021,10]
[314097659,1707975464335,10000.0,0.00021,10]
[314097660,1707975470769,10000.0,0.00021,10]
[314097661,1707975479809,4081.97,0.00021,10]
[314097662,1707975770308,154.93802479,0.00020895,2]
[314097700,1707976233975,-429.93886121,0.00032237,2]
[314097702,1707976233984,-328.02925202,0.00032371,3]
[314097704,1707976233995,-436.65224553,0.00032371,5]
[314097706,1707976234007,-4576.18372595,0.00032371,5]
[314097708,1707976234016,-240.19782422,0.00032371,5]
[314097710,1707976234025,-162.0,0.00033,2]
[314097712,1707976234034,-167.633153,0.0003383,2]
[314097714,1707976234043,-418.10564995,0.00034032,2]
[314097716,1707976234052,-224.0,0.00034365,2]
[314097717,1707976234061,-24900.0,0.00034365,2]
[314097719,1707976234071,-214.553351,0.00034365,2]
[314097721,1707976234080,-200.230317,0.00034521,2]
[314097723,1707976234089,-155.0,0.00034652,2]
[314097725,1707976234098,-200.1809906,0.00034778,2]
[314097727,1707976234108,-211.839866,0.0003491,2]
[314097729,1707976234116,-192.627183,0.0003491,2]
[314097731,1707976234125,-456.104202,0.0003491,2]
[314097733,1707976234134,-266.533122,0.0003491,2]
[314097735,1707976234148,-5000.0,0.00035024,7]
[314097737,1707976234157,-200.1809906,0.00035342,2]
[314097746,1707976234245,-199.8043946,0.00035342,2]
[314097748,1707976234254,-211.839866,0.00035346,2]
[314097750,1707976234263,-456.104202,0.00035346,2]
[314097752,1707976234272,-266.533122,0.00035346,2]
[314097753,1707976234282,-161.74103775,0.00035515,2]
[314097755,1707976234291,-161.74103775,0.00035527,2]
[314097757,1707976234300,-161.74103775,0.00035539,2]
[314097759,1707976234310,-161.74103775,0.00035551,2]
[314097761,1707976234319,-161.74103775,0.00035563,2]
[314097763,1707976234328,-3309.23,0.00035606,3]
[314097765,1707976234336,-2757.69,0.00035606,3]
[314097767,1707976234346,-2298.08,0.00035606,3]
[314097768,1707976234354,-14571.35950289,0.00035614,31]
[314097770,1707976234363,-261.58359831,0.00035615,15]
[314097772,1707976234372,-500.0,0.00035615,15]
[314097774,1707976234381,-500.0,0.00035615,15]
[314097776,1707976234392,-500.0,0.00035615,15]
[314097778,1707976234401,-455.66409935,0.00035615,15]
[314097780,1707976234410,-500.0,0.00035615,15]
[314097782,1707976234419,-500.0,0.00035615,15]
[314097783,1707976234427,-186.72237877,0.00035615,15]
[314097908,1707976238019,-1915.07,0.00035606,3]
[314097911,1707976238029,-313.27762123,0.00035615,15]
[314097913,1707976238038,-500.0,0.00035615,15]
[314097915,1707976238047,-500.0,0.00035615,15]
[314097917,1707976238055,-500.0,0.00035615,15]
[314097919,1707976238064,-500.0,0.00035615,15]
[314097921,1707976238073,-500.0,0.00035615,15]
[314097923,1707976238082,-500.0,0.00035615,15]
[314097925,1707976238096,-500.0,0.00035615,15]
[314097928,1707976238109,-500.0,0.00035615,15]
[314097930,1707976238122,-500.0,0.00035615,15]
[314097932,1707976238135,-250.0,0.00035615,2]
[314097934,1707976238147,-2102.48910127,0.00035615,2]
[314097937,1707976238160,-1736.32089873,0.00035615,2]
[314097939,1707976238172,-3838.81,0.00035615,2]
[314097941,1707976238184,-500.0,0.00035616,14]
[314097944,1707976238196,-439.02807789,0.00035616,14]
[314097946,1707976238208,-503.32932476,0.00035616,14]
[314097948,1707976238221,-302.19009296,0.00035616,14]
[314097951,1707976238233,-275.05211091,0.00035616,14]
[314097953,1707976238250,-233.60423489,0.00035616,14]
[314097956,1707976238260,-511.00343445,0.00035616,14]
[314097958,1707976238271,-500.0,0.00035616,14]
[314097960,1707976238283,-500.0,0.00035616,14]
[314097962,1707976238295,-503.4326383,0.00035616,14]
[314097965,1707976238307,-98.3601456,0.00035616,14]
[314097967,1707976238321,-401.6398544,0.00035616,14]
[314097970,1707976238333,-500.0,0.00035616,14]
[314097972,1707976238345,-500.0,0.00035616,14]
[314097974,1707976238357,-500.0,0.00035616,14]
[314097976,1707976238367,-504.24519245,0.00035616,14]
[314097978,1707976238377,-315.01598404,0.00035616,14]
[314097981,1707976238391,-500.0,0.00035616,14]
[314097983,1707976238403,-500.0,0.00035616,14]
[314097986,1707976238415,-528.03076737,0.00035616,14]
[314097988,1707976238427,-500.0,0.00035616,14]
[314097990,1707976238438,-503.4400308,0.00035616,14]
[314097991,1707976238448,-510.79586648,0.00035616,14]
[314097993,1707976238460,-220.0,0.00035616,2]
[314097995,1707976238472,-544.11636985,0.00035616,14]
[314097997,1707976238483,-500.0,0.00035616,2]
[314097998,1707976238495,-500.0,0.00035616,14]
[314098000,1707976238508,-500.0,0.00035616,14]
[314098001,1707976238520,-574.18027158,0.00035616,14]
[314098002,1707976238532,-500.0,0.00035616,7]
[314098003,1707976238544,-500.0,0.00035616,14]
[314098004,1707976238556,-506.21858276,0.00035616,14]
[314098005,1707976238567,-564.36544628,0.00035616,14]
[314098006,1707976238577,-500.0,0.00035616,14]
[314098007,1707976238587,-503.20204968,0.00035616,14]
[314098008,1707976238597,-500.0,0.00035616,14]
[314098009,1707976238608,-500.0,0.00035616,14]
[314098010,1707976238620,-345.27422997,0.00035616,14]
[314098011,1707976238631,-500.0,0.00035616,14]
[314098012,1707976238643,-500.0,0.00035616,14]
[314098013,1707976238655,-500.0,0.00035616,7]
[314098014,1707976238665,-178.61972058,0.00035616,14]
[314098015,1707976238676,-500.0,0.00035616,14]
[314098016,1707976238686,-500.0,0.00035616,14]
[314098017,1707976238698,-500.0,0.00035616,14]
[314098018,1707976238708,-500.0,0.00035616,14]
[314098019,1707976238719,-506.14020754,0.00035616,14]